bitfinex/quotes_ETHUSD_20241217
["timestamp","ask_amount","ask_price","bid_price","bid_amount"]
[1734430054503,2.22749931,4013.1,4012.4,0.12856059]
[1734430054687,1.37073986,4013.1,4012.4,0.12856059]
[1734430055439,10.5266,4013.3,4012.4,0.12856059]
[1734430055979,10.5266,4013.3,4012.6,2.31407665]
[1734430056898,10.5266,4013.3,4012.4,0.12856059]
[1734430057112,1.5766,4013.1,4012.4,0.12856059]
[1734430057326,2.14517403,4013.0,4012.4,0.12856059]
[1734430057526,1.33432443,4012.9,4012.4,0.12856059]
[1734430057740,0.47602782,4012.9,4012.4,0.12856059]
[1734430059681,1.5766,4013.1,4012.6,2.31407665]
[1734430060310,2.14860765,4013.0,4012.4,0.12856059]
[1734430060574,0.85944756,4012.9,4012.4,0.12856059]
[1734430060727,2.61510418,4013.1,4012.4,0.12856059]
[1734430060728,1.5766,4013.1,4012.4,0.12856059]
[1734430060911,0.85943121,4013.0,4012.4,0.12856059]
[1734430061271,2.61510418,4013.1,4012.4,0.12856059]
[1734430061565,3.46048114,4013.0,4012.4,0.12856059]
[1734430061868,2.14914463,4012.9,4012.4,0.12856059]
[1734430062017,0.8596994,4012.8,4012.4,0.12856059]
[1734430062367,2.34984399,4013.0,4012.4,0.12856059]
[1734430062605,3.18841261,4012.9,4012.4,0.12856059]
[1734430062885,2.14990843,4012.8,4012.4,0.12856059]
[1734430063025,1.31133981,4013.0,4012.4,0.12856059]
[1734430063225,0.85991368,4012.9,4012.4,0.12856059]
[1734430063436,2.34984399,4013.0,4012.4,0.12856059]
[1734430063641,0.86022714,4012.9,4012.4,0.12856059]
[1734430063899,1.03850418,4013.1,4012.6,2.31407665]
[1734430064051,10.49829395,4013.3,4012.7,4.5778]
[1734430064052,8.95,4013.3,4012.7,4.5778]
[1734430065055,0.86050779,4013.2,4012.7,4.5778]
[1734430065246,9.98850418,4013.3,4012.7,4.5778]
[1734430065434,0.86089424,4013.2,4012.7,4.5778]
[1734430065635,8.95,4013.3,4012.7,4.5778]
[1734430065876,0.86091472,4013.2,4013.0,2.31407665]
[1734430066072,9.98850418,4013.3,4013.0,2.31407665]
[1734430066228,0.86092518,4013.2,4013.0,2.31407665]
[1734430066561,1.5766,4013.5,4013.0,2.31407665]
[1734430066969,2.15227511,4013.4,4013.0,2.31407665]
[1734430067266,1.52656732,4013.4,4013.0,2.31407665]
[1734430067567,10.49829395,4013.7,4013.0,2.31407665]
[1734430067568,9.98850418,4013.7,4013.0,2.31407665]
[1734430067766,1.03850418,4013.8,4013.4,2.31407665]
[1734430068074,1.54829395,4014.0,4012.8,5.31407665]
[1734430068075,1.03850418,4014.0,4013.7,2.31407665]
[1734430068361,0.86120702,4013.9,4013.7,2.31407665]
[1734430068670,0.86139566,4013.8,4013.7,2.31407665]
[1734430068962,1.03850418,4014.0,4013.7,2.31407665]
[1734430069116,0.86138128,4013.9,4013.7,2.31407665]
[1734430069314,1.03850418,4014.1,4013.7,2.31407665]
[1734430069518,2.15346986,4014.0,4013.7,2.31407665]
[1734430069715,0.86138794,4013.9,4013.7,2.31407665]
[1734430069958,1.03850418,4014.0,4013.7,2.31407665]
[1734430070139,0.86140572,4013.9,4013.7,2.31407665]
[1734430070349,1.03850418,4014.0,4013.7,2.31407665]
[1734430070563,2.47375627,4013.9,4013.7,2.31407665]
[1734430070870,0.86140894,4013.8,4013.7,2.31407665]
[1734430071417,0.82548785,4013.8,4013.7,2.31407665]
[1734430071642,0.32023533,4013.9,4013.7,2.31407665]
[1734430072093,1.03850418,4014.2,4013.7,5.31407665]
[1734430072307,2.54540418,4014.3,4014.1,2.31407665]
[1734430072808,1.29171001,4014.2,4013.7,2.31407665]
[1734430072964,2.33022598,4014.1,4013.7,2.31407665]
[1734430073148,0.53854199,4014.1,4013.7,2.31407665]
[1734430073356,1.29172151,4014.0,4013.7,2.31407665]
[1734430073550,1.57704617,4014.1,4013.7,2.31407665]
[1734430073849,0.53854199,4014.1,4013.7,2.31407665]
[1734430074048,1.03850418,4014.2,4013.7,2.31407665]
[1734430074280,2.3301577,4014.2,4013.7,2.31407665]
[1734430074446,1.29165352,4014.2,4013.7,2.31407665]
[1734430074645,1.03850418,4014.3,4014.1,2.31407665]
[1734430074893,1.03850418,4014.4,4014.1,2.31407665]
[1734430075195,1.29149242,4014.3,4014.1,2.31407665]
[1734430075396,1.03850418,4014.4,4014.1,2.31407665]
[1734430075608,1.29149422,4014.3,4014.1,2.31407665]
[1734430075748,1.03850418,4014.4,4014.1,2.31407665]
[1734430076098,1.29140792,4014.3,4014.1,2.31407665]
[1734430076302,1.03850418,4014.6,4014.1,5.31407665]
[1734430076446,1.03850418,4014.9,4014.5,2.31407665]
[1734430076649,1.29094009,4014.9,4014.5,2.31407665]
[1734430076876,1.03850418,4015.1,4014.5,2.31407665]
[1734430077197,1.03850418,4015.1,4014.9,2.31407665]
[1734430077198,2.32939941,4015.1,4014.9,2.31407665]
[1734430077503,10.4569,4015.8,4014.9,2.31407665]
[1734430077504,1.03850418,4015.2,4014.9,2.31407665]
[1734430077811,1.03850418,4015.3,4014.9,2.31407665]
[1734430078518,1.42621781,4015.3,4014.9,2.31407665]
[1734430078721,1.29033818,4015.2,4014.9,2.31407665]
[1734430079012,1.42621781,4015.3,4014.9,2.31407665]
[1734430079214,1.42621781,4015.3,4014.6,1.5553]
[1734430079215,1.29000359,4015.2,4014.6,1.5553]
[1734430079528,1.42621781,4015.3,4014.7,2.31407665]
[1734430079711,1.58723331,4015.2,4014.7,2.31407665]
[1734430080025,0.29745118,4015.2,4014.7,2.31407665]
[1734430082134,0.38771363,4015.3,4014.7,2.31407665]
[1734430085116,0.38771363,4015.3,4015.1,2.31407665]
[1734430086848,1.6148,4015.2,4015.1,2.31407665]
[1734430087048,1.6148,4015.2,4014.7,2.31407665]
[1734430087206,1.6148,4015.2,4014.3,2.31407665]
[1734430087513,10.54216493,4015.1,4014.3,2.31407665]
[1734430087714,9.25410178,4015.1,4014.3,2.31407665]
[1734430088102,9.25410178,4015.1,4013.9,1.5357]
[1734430088103,9.25410178,4015.1,4014.7,2.31407665]
[1734430088848,9.25410178,4015.1,4014.7,5.31407665]
[1734430089052,8.95,4015.1,4014.7,5.31407665]
[1734430090582,1.6148,4015.9,4014.7,5.31407665]
[1734430090751,1.6148,4015.9,4015.7,2.31407665]
[1734430091693,1.6148,4015.9,4015.3,2.31407665]
[1734430091872,1.6148,4015.7,4014.9,2.31407665]
[1734430092037,1.33781502,4015.6,4014.9,2.31407665]
[1734430092373,0.85798749,4015.5,4014.9,2.31407665]
[1734430092540,0.47982753,4015.6,4014.9,2.31407665]
[1734430092742,0.85797924,4015.5,4014.5,2.31407665]
[1734430092936,1.6148,4015.4,4014.5,2.31407665]
[1734430093121,1.6148,4015.1,4014.5,2.31407665]
[1734430093554,0.18566366,4015.0,4014.5,2.31407665]
[1734430093763,0.18566366,4014.9,4014.5,2.31407665]
[1734430094073,0.18566366,4014.8,4014.5,2.31407665]
[1734430094373,0.18566366,4014.7,4014.1,2.31407665]
[1734430094525,1.80046366,4014.6,4014.1,2.31407665]
[1734430094722,0.18566366,4014.5,4014.1,2.31407665]
[1734430094925,1.6148,4014.6,4014.1,2.31407665]
[1734430095178,0.26898464,4014.5,4014.1,2.31407665]
[1734430096273,1.6148,4014.6,4014.1,2.31407665]
[1734430096803,0.18586098,4014.5,4014.1,2.31407665]
[1734430096968,1.6148,4014.6,4014.1,2.31407665]
[1734430097160,0.18586453,4014.5,4014.1,2.31407665]
[1734430097363,1.6148,4014.6,4014.1,2.31407665]
[1734430097674,0.45491501,4014.5,4014.1,2.31407665]
[1734430098011,0.1859312,4014.4,4014.1,2.31407665]
[1734430098188,0.26898464,4014.5,4014.1,2.31407665]
[1734430098610,1.6148,4014.6,4014.1,2.31407665]
[1734430098904,1.6148,4014.6,4014.5,2.31407665]
[1734430099108,1.80075337,4014.6,4014.5,2.31407665]
[1734430100010,1.80077647,4014.6,4014.5,2.31407665]
[1734430101065,2.65959765,4014.6,4014.5,2.31407665]
[1734430101402,3.13691247,4014.6,4014.5,2.31407665]
[1734430101846,2.27809129,4014.6,4014.5,2.31407665]
[1734430102147,3.13706062,4014.6,4014.5,2.31407665]
[1734430102746,3.13706062,4014.6,4014.1,2.31407665]
[1734430102747,4.42562243,4014.6,4014.1,2.31407665]
[1734430102905,2.74869249,4014.5,4014.1,2.31407665]
[1734430103112,0.18602849,4014.4,4014.1,2.31407665]
[1734430103430,0.18602849,4014.3,4014.1,2.31407665]
[1734430103632,0.18602849,4014.2,4014.1,2.31407665]
[1734430104340,0.18602849,4014.2,4013.7,2.31407665]
[1734430104547,1.03850418,4014.5,4013.7,2.31407665]
[1734430104548,2.66282733,4014.1,4013.7,2.31407665]
[1734430104697,0.55616164,4014.0,4013.7,2.31407665]
[1734430104890,0.18602849,4013.9,4013.7,2.31407665]
[1734430105200,0.18602849,4013.8,4013.7,2.31407665]
[1734430106739,0.1859784,4013.8,4013.7,2.31407665]
[1734430107797,1.8032784,4013.8,4013.7,2.31407665]
[1734430108029,1.6173,4013.6,4012.1,1.5482]
[1734430108336,1.04025511,4013.4,4013.1,2.31407665]
[1734430108537,2.65755511,4013.6,4013.3,2.31407665]
[1734430108738,0.18585906,4013.5,4013.3,2.31407665]
[1734430108954,8.95,4013.7,4013.3,2.31407665]
[1734430111701,9.99025511,4014.1,4013.3,2.31407665]
[1734430112006,1.04626927,4014.0,4013.9,2.31407665]
[1734430112341,2.33698201,4014.0,4013.9,2.31407665]
[1734430113139,2.15119214,4014.0,4013.9,2.31407665]
[1734430113299,1.90073451,4014.0,4013.9,2.31407665]
[1734430113509,2.33715808,4014.0,4013.9,2.31407665]
[1734430113912,1.04627386,4014.0,4013.9,2.31407665]
[1734430114117,1.04025511,4014.3,4013.9,2.31407665]
[1734430114445,1.04632287,4014.2,4013.9,2.31407665]
[1734430114655,1.04025511,4014.4,4014.2,1.5146]
[1734430114832,1.04025511,4014.6,4014.2,1.5146]
[1734430115038,1.04628049,4014.5,4014.2,1.5146]
[1734430115237,1.04628049,4014.4,4014.2,1.5146]
[1734430115581,1.04025511,4015.0,4014.4,1.5146]
[1734430115865,1.04025511,4015.5,4015.0,1.5146]
[1734430116151,0.18577779,4015.4,4015.0,1.5146]
[1734430116319,9.99025511,4015.6,4015.0,1.5146]
[1734430116506,1.04600819,4015.5,4015.0,1.5146]
[1734430116707,1.04593548,4015.4,4015.0,1.5146]
[1734430116956,9.99025511,4015.6,4015.0,1.5146]
[1734430117162,2.33623799,4015.5,4015.4,2.31407665]
[1734430117452,3.3764931,4015.5,4015.4,2.31407665]
[1734430117666,2.33623799,4015.5,4015.4,2.31407665]
[1734430118043,1.04594685,4015.5,4015.4,2.31407665]
[1734430118211,0.18575276,4015.5,4015.4,2.31407665]
[1734430118410,1.04025511,4015.7,4015.4,2.31407665]
[1734430118647,1.04566275,4015.6,4015.4,2.31407665]
[1734430118815,1.04025511,4015.8,4015.4,2.31407665]
[1734430119023,4.53098086,4015.7,4015.4,2.31407665]
[1734430119220,1.04567002,4015.6,4015.4,2.31407665]
[1734430119523,2.19531889,4015.7,4015.4,2.31407665]
[1734430119733,1.04558012,4015.6,4015.4,2.31407665]
[1734430119927,1.15506378,4015.7,4015.4,2.31407665]
[1734430120138,1.04557853,4015.6,4015.4,2.31407665]
[1734430120455,1.15506378,4015.7,4015.4,2.31407665]
[1734430120669,1.04553705,4015.6,4015.4,2.31407665]
[1734430120957,1.04025511,4015.8,4015.4,2.31407665]
[1734430121121,2.59532246,4015.7,4015.4,2.31407665]
[1734430121319,1.0454846,4015.6,4015.4,2.31407665]
[1734430121542,0.26006378,4015.7,4015.4,2.31407665]
[1734430121896,0.18564543,4015.6,4015.0,1.5146]
[1734430122197,0.18564543,4015.6,4015.2,2.31407665]
[1734430122494,0.49028013,4015.6,4015.2,2.31407665]
[1734430122652,0.18564543,4015.5,4015.2,2.31407665]
[1734430122843,0.3046347,4015.6,4015.2,2.31407665]
[1734430123145,0.18562624,4015.5,4015.0,1.5146]
[1734430123383,0.18562624,4015.5,4015.2,2.31407665]
[1734430123585,1.7766516,4015.4,4014.1,1.5146]
[1734430123796,1.04025511,4015.2,4014.6,2.31407665]
[1734430123965,0.1856202,4015.1,4014.6,2.31407665]
[1734430124313,2.81690671,4015.4,4015.0,2.31407665]
[1734430124595,3.84345633,4015.3,4015.0,2.31407665]
[1734430124797,2.33505654,4015.2,4015.0,2.31407665]
[1734430124963,0.18559514,4015.1,4015.0,2.31407665]
[1734430125165,2.33514217,4015.1,4014.6,2.31407665]
[1734430125500,1.04025511,4015.2,4014.6,2.31407665]
[1734430125501,3.37539728,4015.0,4014.6,2.31407665]
[1734430125695,3.86897528,4014.9,4014.6,2.31407665]
[1734430125905,2.33514217,4014.8,4014.6,2.31407665]
[1734430126117,1.53383311,4014.9,4014.6,2.31407665]
[1734430126118,0.18559514,4014.7,4014.6,2.31407665]
[1734430126398,0.85989946,4014.7,4014.6,2.31407665]
[1734430126565,1.53383311,4014.9,4014.6,2.31407665]
[1734430126764,1.04555506,4014.8,4014.6,2.31407665]
[1734430126944,1.04025511,4015.1,4014.6,2.31407665]
[1734430127150,4.57752866,4015.0,4014.6,2.31407665]
[1734430127399,2.33539053,4014.9,4014.6,2.31407665]
[1734430127568,1.04552003,4014.8,4014.6,2.31407665]
[1734430127758,1.04025511,4014.9,4014.6,2.31407665]
[1734430128094,2.24213813,4015.0,4014.6,2.31407665]
[1734430128313,2.33544523,4014.9,4014.6,2.31407665]
[1734430128478,0.6137966,4014.9,4014.6,2.31407665]
[1734430128679,0.85996054,4014.8,4014.6,2.31407665]
[1734430129581,1.65405171,4014.9,4014.6,2.31407665]
[1734430129797,2.33565754,4014.8,4014.6,2.31407665]
[1734430130002,1.65405171,4014.9,4014.6,2.31407665]
[1734430130310,2.33565975,4014.8,4014.6,2.31407665]
[1734430130466,1.65405171,4014.9,4014.6,2.31407665]
[1734430130666,2.33574948,4014.8,4014.6,2.31407665]
[1734430130877,1.65405171,4014.9,4014.6,2.31407665]
[1734430131206,2.77735983,4014.8,4014.6,2.31407665]
[1734430131418,1.20188302,4015.0,4014.6,2.31407665]
[1734430131419,2.24213813,4015.0,4014.6,2.31407665]
[1734430131568,3.37598888,4014.9,4014.6,2.31407665]
[1734430131767,2.33577459,4014.8,4014.6,2.31407665]
[1734430131968,0.8600661,4014.7,4014.6,2.31407665]
[1734430132166,1.90032121,4014.9,4014.6,2.31407665]
[1734430132391,0.86006342,4014.8,4014.6,2.31407665]
[1734430132614,2.24213813,4015.0,4014.6,2.31407665]
[1734430132896,1.04570677,4014.9,4014.6,2.31407665]
[1734430133095,2.24213813,4015.0,4014.6,2.31407665]
[1734430133312,2.33584779,4014.9,4014.6,2.31407665]
[1734430133495,0.86009199,4014.8,4014.6,2.31407665]
[1734430133701,1.04025511,4014.9,4014.6,2.31407665]
[1734430133899,0.86011246,4014.8,4014.6,2.31407665]
[1734430134215,2.24213813,4015.0,4014.6,2.31407665]
[1734430134440,1.60613528,4014.9,4014.6,2.31407665]
[1734430134587,3.3761381,4014.8,4014.6,1.27733343]
[1734430134781,2.33595621,4014.7,4014.6,1.27733343]
[1734430135094,2.33591865,4014.7,4014.6,1.27733343]
[1734430135279,1.04573239,4014.7,4014.6,1.27733343]
[1734430136105,1.56860285,4014.7,4014.6,1.27733343]
[1734430136280,1.56860285,4014.7,4014.2,3.0]
[1734430136281,4.15225796,4014.7,4014.2,5.31407665]
[1734430136584,3.3762964,4014.6,4014.2,2.31407665]
[1734430136919,3.3762964,4014.5,4014.2,2.31407665]
[1734430137086,2.33604129,4014.4,4014.2,2.31407665]
[1734430137282,0.18565036,4014.3,4014.2,2.31407665]
[1734430137491,3.10650564,4014.7,4014.2,2.31407665]
[1734430137803,3.73632159,4014.6,4014.2,2.31407665]
[1734430137975,2.33664867,4014.5,4014.2,2.31407665]
[1734430138315,1.04611744,4014.4,4014.2,2.31407665]
[1734430138612,1.04609008,4014.3,4014.2,2.31407665]
[1734430138965,0.18570592,4014.3,4014.2,2.31407665]
[1734430139371,1.55092704,4014.3,4014.2,2.31407665]
[1734430139672,0.69047273,4014.3,4014.2,2.31407665]
[1734430139873,2.84152596,4014.3,4014.2,2.31407665]
[1734430140306,3.88178107,4014.3,4014.2,2.31407665]
[1734430140575,0.69047273,4014.3,4014.2,2.31407665]
[1734430141421,1.55088032,4014.3,4014.2,2.31407665]
[1734430142073,2.84146347,4014.3,4014.2,2.31407665]
[1734430142277,2.84147521,4014.3,4014.2,2.31407665]
[1734430143188,1.55087372,4014.3,4014.2,2.31407665]
[1734430143807,3.09717372,4014.3,4014.2,2.31407665]
[1734430144140,4.38778286,4014.3,4014.2,2.31407665]
[1734430144435,5.42803797,4014.3,4014.2,2.31407665]
[1734430144734,13.33778286,4014.3,4014.2,2.31407665]
[1734430144904,14.37829901,4014.3,4014.2,2.31407665]
[1734430145534,9.64047273,4014.3,4014.2,2.31407665]
[1734430145737,9.13582216,4014.3,4014.2,2.31407665]
[1734430147135,9.99612193,4014.3,4014.2,2.31407665]
[1734430147643,3.37709184,4014.3,4013.8,2.31407665]
[1734430147807,2.33657569,4014.2,4013.8,2.31407665]
[1734430147998,1.04627097,4014.1,4013.8,2.31407665]
[1734430148341,0.18593287,4014.0,4013.8,2.31407665]
[1734430148490,0.18593287,4013.9,4013.8,2.31407665]
[1734430148693,1.04630467,4013.9,4013.8,2.31407665]
[1734430148893,0.18593287,4013.9,4013.4,2.31407665]
[1734430149095,1.04631892,4013.8,4013.4,2.31407665]
[1734430149342,0.18593287,4013.7,4013.4,2.31407665]
[1734430149522,0.18593287,4013.6,4013.4,2.31407665]
[1734430149723,1.04051615,4014.0,4013.4,2.31407665]
[1734430150048,0.6215495,4013.9,4013.4,2.31407665]
[1734430150194,1.04627951,4013.8,4013.4,2.31407665]
[1734430150400,0.18596175,4013.7,4013.4,2.31407665]
[1734430150599,0.18596175,4013.6,4013.4,2.31407665]
[1734430150816,0.43558775,4013.9,4013.4,2.31407665]
[1734430151130,0.35445776,4013.8,4013.4,2.31407665]
[1734430151383,0.1859795,4013.7,4013.4,2.31407665]
[1734430151524,0.1859795,4013.6,4013.4,2.31407665]
[1734430151721,0.1859795,4013.5,4013.4,2.31407665]
[1734430151918,0.16847826,4013.8,4013.4,2.31407665]
[1734430152120,0.18600215,4013.7,4013.4,2.31407665]
[1734430152321,0.18603218,4013.6,4013.4,2.31407665]
[1734430152521,0.43558775,4013.9,4013.4,2.31407665]
[1734430152741,1.21476273,4013.8,4013.4,2.31407665]
[1734430152942,0.18603999,4013.7,4013.4,2.31407665]
[1734430153141,0.18603999,4013.6,4013.4,2.31407665]
[1734430153356,1.24919486,4014.1,4013.4,2.31407665]
[1734430153672,2.33656029,4014.0,4013.8,2.31407665]
[1734430153879,0.18607287,4013.9,4013.8,2.31407665]
[1734430154020,1.04626636,4013.9,4013.8,2.31407665]
[1734430154220,1.04626636,4013.9,4013.8,3.85017665]
[1734430154221,0.18607287,4013.9,4013.8,3.85017665]
[1734430154837,0.18607287,4013.9,4013.8,6.85017665]
[1734430155044,8.95,4014.4,4013.9,3.0]
[1734430155245,1.04051615,4014.8,4014.3,2.31407665]
[1734430155457,1.04051615,4014.8,4014.7,2.31407665]
[1734430155640,1.04630767,4014.8,4014.7,2.31407665]
[1734430155846,1.6156,4014.7,4012.9,1.5523]
[1734430156121,1.6156,4014.7,4013.7,2.31407665]
[1734430156122,1.04049416,4014.2,4013.7,2.31407665]
[1734430156366,1.04645109,4014.1,4013.7,5.31407665]
[1734430156550,1.04645109,4014.0,4013.7,5.31407665]
[1734430156763,0.18607751,4013.9,4013.7,5.31407665]
[1734430156934,0.18607751,4013.8,4013.7,5.31407665]
[1734430157646,1.04651519,4013.8,4013.7,5.31407665]
[1734430158550,1.04653563,4013.8,4013.7,2.31407665]
[1734430158995,0.18607751,4013.8,4013.7,2.31407665]
[1734430159148,0.18607751,4013.8,4013.7,3.92657665]
[1734430159352,8.95,4014.4,4013.7,3.92657665]
[1734430159353,9.99049416,4014.4,4013.7,3.92657665]
[1734430159691,3.55766081,4014.3,4014.1,2.31407665]
[1734430159899,0.18612612,4014.2,4014.1,2.31407665]
[1734430161001,0.18612612,4014.2,4014.1,6.92657665]
[1734430161293,8.95,4014.4,4014.2,3.0]
[1734430162450,8.95,4014.4,4014.3,1.6125]
[1734430162650,1.04049416,4015.1,4014.3,1.6125]
[1734430162896,2.59708941,4015.0,4014.6,2.31407665]
[1734430163212,3.37752652,4014.9,4014.6,2.31407665]
[1734430163496,0.26012354,4015.0,4014.6,2.31407665]
[1734430163497,0.18610849,4014.8,4014.6,2.31407665]
[1734430163651,0.18610849,4014.7,4014.6,2.31407665]
[1734430164049,0.18610849,4014.7,4014.6,6.92657665]
[1734430164297,1.04049416,4015.5,4014.8,1.6125]
[1734430164488,2.33701487,4015.4,4015.1,2.31407665]
[1734430164653,0.18601872,4015.3,4015.1,2.31407665]
[1734430164852,0.18601872,4015.2,4015.1,2.31407665]
[1734430165261,1.04049416,4015.6,4015.1,2.31407665]
[1734430165589,2.33695647,4015.5,4015.1,2.31407665]
[1734430165755,0.18592344,4015.4,4015.1,2.31407665]
[1734430165975,0.18592344,4015.3,4015.1,2.31407665]
[1734430166169,2.1956177,4015.6,4015.1,2.31407665]
[1734430166371,1.04621457,4015.5,4015.1,2.31407665]
[1734430166568,0.18585714,4015.4,4015.1,2.31407665]
[1734430166787,1.04049416,4015.6,4015.1,2.31407665]
[1734430167011,1.04621018,4015.5,4015.2,1.6125]
[1734430167310,2.08098832,4016.0,4015.2,1.6125]
[1734430167311,1.04049416,4016.0,4015.2,1.6125]
[1734430167472,2.08098832,4016.4,4015.2,1.6125]
[1734430167473,0.18575211,4015.9,4015.2,1.6125]
[1734430167688,2.08098832,4016.4,4015.2,1.6125]
[1734430167689,1.04049416,4016.2,4015.2,1.6125]
[1734430167903,1.0458931,4016.1,4015.2,1.6125]
[1734430168110,1.0458931,4016.1,4015.8,2.31407665]
[1734430168111,2.15034815,4016.1,4015.8,2.31407665]
[1734430168313,1.04589223,4016.0,4015.8,2.31407665]
[1734430168497,2.1956177,4016.2,4015.8,2.31407665]
[1734430168698,1.04559952,4016.1,4015.8,2.31407665]
[1734430168893,0.50975445,4016.0,4015.8,2.31407665]
[1734430169092,0.32412172,4016.0,4015.8,2.31407665]
[1734430170022,1.04543563,4015.9,4015.4,2.31407665]
[1734430170204,3.61689311,4015.8,4015.4,2.31407665]
[1734430170369,2.33539806,4015.7,4015.4,2.31407665]
[1734430170571,0.18554918,4015.6,4015.4,2.31407665]
[1734430170823,1.28149931,4015.8,4015.4,2.31407665]
[1734430171080,1.28149931,4015.8,4015.0,3.0]
[1734430171081,0.85986343,4015.7,4015.0,5.31407665]
[1734430171325,0.56270623,4015.6,4015.0,5.31407665]
[1734430171472,0.37717627,4015.6,4015.0,5.31407665]
[1734430173177,0.18548725,4015.5,4015.0,5.31407665]
[1734430173383,0.18548725,4015.5,4015.0,2.31407665]
[1734430173684,0.85974659,4015.4,4015.0,2.31407665]
[1734430173920,0.43177768,4015.3,4015.0,2.31407665]
[1734430174097,0.24629043,4015.3,4015.0,2.31407665]
[1734430176810,0.24629043,4015.3,4014.6,1.6125]
[1734430177167,0.18548914,4015.2,4014.9,2.31407665]
[1734430177280,0.24629043,4015.3,4014.9,2.31407665]
[1734430177483,1.6304,4015.1,4014.9,2.31407665]
[1734430178052,0.1855048,4015.0,4014.5,2.31407665]
[1734430178179,1.22599896,4015.1,4014.5,2.31407665]
[1734430178381,2.3347044,4015.0,4014.5,2.31407665]
[1734430178589,0.1855048,4014.9,4014.5,2.31407665]
[1734430178787,0.29850774,4014.9,4014.5,2.31407665]
[1734430180124,0.18556207,4014.8,4014.5,2.31407665]
[1734430180428,0.29850774,4014.9,4014.5,2.31407665]
[1734430182687,0.18567617,4014.8,4014.5,2.31407665]
[1734430183443,0.18567617,4014.7,4014.5,2.31407665]
[1734430183592,0.15246781,4014.7,4014.5,2.31407665]
[1734430183794,1.04538749,4014.6,4014.1,2.31407665]
[1734430184127,0.18567617,4014.5,4014.1,2.31407665]
[1734430184348,0.18567617,4014.4,4014.1,2.31407665]
[1734430184632,0.18577685,4014.3,4014.1,2.31407665]
[1734430184859,1.6304,4014.6,4014.1,2.31407665]
[1734430185065,1.31264218,4014.5,4014.1,2.31407665]
[1734430185373,1.31264218,4014.5,4013.6,1.6125]
[1734430185374,9.13577309,4014.4,4013.7,2.31407665]
[1734430185514,0.18577309,4014.3,4013.7,2.31407665]
[1734430185848,1.04559838,4014.2,4013.6,2.31407665]
[1734430186048,1.28938234,4014.1,4013.6,2.31407665]
[1734430186251,1.10360925,4014.1,4014.0,2.31407665]
[1734430186430,1.6008,4014.0,4013.4,0.12824903]
[1734430186635,0.1857795,4013.9,4013.2,2.31407665]
[1734430186821,1.04570149,4013.8,4013.2,2.31407665]
[1734430187025,1.41442538,4013.7,4013.2,2.31407665]
[1734430187215,0.1857795,4013.6,4013.2,2.31407665]
[1734430187419,0.36869957,4013.7,4013.2,2.31407665]
[1734430187658,0.18576511,4013.6,4013.2,2.31407665]
[1734430187873,0.18576511,4013.5,4013.2,2.31407665]
[1734430188036,1.05449588,4013.5,4013.2,2.31407665]
[1734430188239,0.18576511,4013.4,4013.2,2.31407665]
[1734430188920,1.05449588,4013.5,4013.2,2.31407665]
[1734430196058,0.36869957,4013.7,4013.2,2.31407665]
[1734430196384,8.95,4013.9,4013.6,2.31407665]
[1734430198897,1.6008,4014.0,4013.6,2.31407665]
[1734430199095,0.18544324,4013.9,4013.6,2.31407665]
[1734430200987,0.18544324,4013.9,4013.3,1.5837]
[1734430201473,0.00085041,4013.6,4013.3,1.5837]
[1734430204215,0.00085041,4013.6,4013.5,1.07115525]
[1734430204511,0.91449872,4013.6,4013.5,1.07115525]
[1734430204817,0.91449872,4013.6,4012.7,3.12836166]
[1734430204818,1.10022412,4013.6,4012.7,1.73946166]
[1734430205012,1.7718254,4013.5,4013.2,1.07115525]
[1734430205212,0.1857254,4013.4,4013.2,1.07115525]
[1734430205413,0.1857254,4013.3,4013.2,1.07115525]
[1734430205615,0.91449872,4013.6,4013.2,1.07115525]
[1734430205616,0.00085041,4013.6,4013.2,1.07115525]
[1734430205799,0.18575603,4013.5,4012.8,4.07115525]
[1734430206000,0.18575603,4013.5,4013.4,2.32072105]
[1734430206186,0.00085041,4013.6,4013.4,2.32072105]
[1734430206392,0.18663592,4013.6,4013.4,2.32072105]
[1734430206593,0.00085041,4013.6,4013.4,2.32072105]
[1734430207111,0.18665057,4013.6,4013.4,2.32072105]
[1734430207343,0.00085041,4013.6,4013.4,2.32072105]
[1734430208151,0.18669964,4013.6,4013.4,2.32072105]
[1734430208310,0.18584923,4013.5,4013.4,2.32072105]
[1734430216160,0.18641695,4013.5,4013.4,2.32072105]
[1734430216516,1.07313037,4013.6,4013.4,2.32072105]
[1734430216948,0.18646817,4013.5,4013.4,2.32072105]
[1734430218447,0.17446817,4013.5,4013.4,2.32072105]
[1734430219349,0.00085041,4013.6,4013.4,2.32072105]
[1734430223175,0.00085041,4013.6,4013.5,4.5942]
[1734430227921,0.00085041,4013.6,4013.5,5.12988911]
[1734430228169,0.00085041,4013.6,4013.5,23.10662173]
[1734430228321,0.00085041,4013.6,4013.5,23.01272173]
[1734430229174,0.00085041,4013.6,4013.5,23.27242949]
[1734430229476,0.00085041,4013.6,4013.5,21.37295749]
[1734430230065,1.04049416,4014.8,4013.7,1.5667]
[1734430230229,1.04049416,4015.0,4014.6,4.5667]
[1734430230554,1.04049416,4015.2,4014.9,1.07051169]
[1734430230758,0.18594157,4015.1,4014.9,1.07051169]
[1734430230945,1.04049416,4015.3,4015.0,1.07051169]
[1734430231142,1.04736145,4015.2,4015.0,1.07051169]
[1734430231348,1.04049416,4015.4,4015.1,1.07051169]
[1734430231670,0.86101743,4015.4,4015.2,1.6259]
[1734430231875,8.95,4015.5,4015.2,1.6259]
[1734430232171,1.5912,4016.1,4015.3,2.31859468]
[1734430232172,0.18582594,4015.4,4015.3,2.31859468]
[1734430232393,0.18582594,4015.6,4015.3,2.31859468]
[1734430232673,0.1857152,4015.5,4015.3,5.31859468]
[1734430232975,9.99049416,4016.0,4015.3,5.31859468]
[1734430233147,1.56074124,4016.2,4015.3,5.31859468]
[1734430233148,0.18569756,4015.9,4015.3,5.31859468]
[1734430233349,9.99049416,4016.3,4015.7,2.31859468]
[1734430233545,3.64952404,4016.2,4015.7,2.31859468]
[1734430233749,0.18555885,4016.1,4015.7,2.31859468]
[1734430234279,8.95,4016.3,4015.7,2.31859468]
[1734430234487,0.18542535,4016.2,4015.7,2.31859468]
[1734430235327,8.95,4016.3,4015.7,2.31859468]
[1734430235646,0.55,4015.7,4013.6,1.6259]
[1734430235850,1.5912,4015.3,4013.6,1.6259]
[1734430236070,1.5912,4014.9,4013.6,1.6259]
[1734430236266,2.14790682,4014.8,4013.2,1.6259]
[1734430236433,1.22425412,4014.7,4013.2,1.6259]
[1734430236637,2.98541929,4014.6,4013.2,1.6259]
[1734430236833,2.3333506,4014.5,4013.2,1.6259]
[1734430237176,8.95,4014.3,4012.9,0.12857186]
[1734430237499,3.37277194,4014.2,4012.9,0.12857186]
[1734430237695,2.33399594,4014.1,4012.9,0.12857186]
[1734430237999,1.5912,4013.9,4012.9,0.12857186]
[1734430238285,0.18547812,4013.8,4012.9,0.12857186]
[1734430238690,9.13547812,4013.8,4012.9,0.12857186]
[1734430238892,0.18548553,4013.7,4012.9,0.12857186]